bitfinex-derivatives/quotes_BTCF0:USTF0_20250901
["timestamp","ask_amount","ask_price","bid_price","bid_amount"]
[1756767449506,0.01609323,108540.0,108530.0,2.0088474]
[1756767450109,0.01609323,108540.0,108530.0,1.76673958]
[1756767450308,0.01609323,108540.0,108530.0,2.0088474]
[1756767451508,0.01609323,108540.0,108530.0,1.76673958]
[1756767451709,0.01609323,108540.0,108530.0,2.0088474]
[1756767454005,0.01609323,108540.0,108530.0,2.3288474]
[1756767454314,0.03632009,108570.0,108550.0,0.05004]
[1756767454506,0.08352009,108570.0,108560.0,1.60988057]
[1756767454808,0.32562791,108570.0,108560.0,1.60988057]
[1756767455811,0.32562791,108570.0,108560.0,1.36777275]
[1756767456005,0.08452009,108570.0,108560.0,1.60979267]
[1756767456402,0.06204009,108570.0,108560.0,1.60979267]
[1756767456609,0.03819009,108570.0,108560.0,1.60979267]
[1756767456918,0.01484009,108570.0,108560.0,1.6847224]
[1756767461919,0.03732009,108570.0,108560.0,0.8256024]
[1756767462105,0.90676001,108570.0,108560.0,0.22278248]
[1756767463417,0.90676001,108570.0,108560.0,0.15715973]
[1756767463915,0.89676001,108570.0,108560.0,0.15715973]
[1756767465514,0.64676001,108570.0,108560.0,0.08223]
[1756767466219,0.08474009,108570.0,108560.0,0.08223]
[1756767466815,0.32676001,108570.0,108560.0,0.08223]
[1756767467218,0.32676001,108570.0,108560.0,0.14785275]
[1756767469816,0.08474009,108570.0,108560.0,0.14785275]
[1756767470007,0.32676001,108570.0,108560.0,0.14785275]
[1756767475323,0.69676001,108570.0,108560.0,0.14785275]
[1756767479020,0.32676001,108570.0,108560.0,0.14785275]
[1756767479220,0.69676001,108570.0,108560.0,0.14785275]
[1756767479430,0.08474009,108570.0,108560.0,0.14785275]
[1756767479726,0.64676001,108570.0,108560.0,0.14785275]
[1756767480939,0.32676001,108570.0,108560.0,0.14785275]
[1756767481818,0.02248,108560.0,108550.0,0.19753617]
[1756767482023,1.01271992,108560.0,108550.0,0.06556461]
[1756767482222,1.26171649,108560.0,108550.0,0.14936461]
[1756767482430,0.94171649,108560.0,108550.0,0.14936461]
[1756767482628,0.94171649,108560.0,108550.0,0.16327461]
[1756767482927,0.08889657,108560.0,108550.0,0.52407461]
[1756767483115,0.01899657,108560.0,108550.0,0.95052992]
[1756767483521,0.01899657,108560.0,108550.0,1.03268717]
[1756767484526,0.01899657,108560.0,108550.0,1.03468717]
[1756767484830,0.01899657,108560.0,108550.0,0.79266725]
[1756767485023,0.06728657,108560.0,108550.0,0.79266725]
[1756767485218,0.06728657,108560.0,108550.0,1.03468717]
[1756767485729,0.08976657,108560.0,108550.0,1.53148717]
[1756767486029,0.33178649,108560.0,108550.0,1.31807]
[1756767486532,0.08976657,108560.0,108550.0,1.31807]
[1756767487032,0.08976657,108560.0,108550.0,1.31803]
[1756767487428,0.08976657,108560.0,108550.0,0.46051]
[1756767487630,0.08976657,108560.0,108550.0,1.02277481]
[1756767488523,0.33178649,108560.0,108550.0,1.38357481]
[1756767489327,0.08976657,108560.0,108550.0,0.52609481]
[1756767489528,0.08976657,108560.0,108550.0,1.38349481]
[1756767490728,0.08976657,108560.0,108550.0,0.46051]
[1756767490930,0.33178649,108560.0,108550.0,0.46051]
[1756767491331,1.04258649,108560.0,108550.0,0.15138023]
[1756767491531,0.80056657,108560.0,108550.0,0.15138023]
[1756767491835,1.29258649,108560.0,108550.0,0.15138023]
[1756767492230,1.29258649,108560.0,108550.0,0.0858]
[1756767495041,1.29258649,108560.0,108550.0,0.04966]
[1756767495640,2.14982649,108560.0,108550.0,0.04966]
[1756767495936,2.14982649,108560.0,108550.0,0.02481]
[1756767496138,2.14982649,108560.0,108550.0,0.002]
[1756767496437,2.14982649,108560.0,108540.0,0.10033023]
[1756767496438,0.02248,108550.0,108540.0,0.09001023]
[1756767496625,0.99178992,108550.0,108540.0,0.02443]
[1756767496829,0.99178992,108550.0,108540.0,0.04774]
[1756767497040,1.24178992,108550.0,108540.0,0.04774]
[1756767497737,2.09886992,108550.0,108540.0,0.04774]
[1756767498540,2.09886992,108550.0,108540.0,0.002]
[1756767499440,2.09878992,108550.0,108540.0,0.002]
[1756767500940,1.84874992,108550.0,108540.0,0.08449]
[1756767501836,0.99178992,108550.0,108540.0,0.04974]
[1756767502145,1.84874992,108550.0,108540.0,0.08449]
[1756767502342,1.84874992,108550.0,108540.0,0.04974]
[1756767503437,1.84874992,108550.0,108540.0,0.02643]
[1756767504945,1.84874992,108550.0,108540.0,0.002]
[1756767507540,0.99178992,108550.0,108540.0,0.002]
[1756767507734,1.84858992,108550.0,108540.0,0.002]
[1756767509344,2.09060984,108550.0,108540.0,0.002]
[1756767509537,1.84858992,108550.0,108540.0,0.002]
[1756767511254,0.99178992,108550.0,108540.0,0.002]
[1756767511544,1.84842992,108550.0,108540.0,0.002]
[1756767511745,1.84842992,108550.0,108540.0,0.02643]
[1756767513446,1.84842992,108550.0,108540.0,0.002]
[1756767518155,2.09044984,108550.0,108540.0,0.002]
[1756767518656,0.06974,108530.0,108520.0,0.08245]
[1756767518835,1.89879992,108530.0,108520.0,0.08245]
[1756767520448,1.89879992,108530.0,108520.0,0.33245]
[1756767521142,1.89879992,108530.0,108520.0,0.33545]
[1756767521446,1.89879992,108530.0,108520.0,0.30052]
[1756767521648,1.89879992,108530.0,108520.0,0.05052]
[1756767522243,1.89879992,108530.0,108520.0,0.08545]
[1756767522443,1.90804845,108530.0,108520.0,0.08545]
[1756767523252,1.90788845,108530.0,108520.0,0.08545]
[1756767523956,1.90788845,108530.0,108520.0,0.003]
[1756767523957,2.51070837,108530.0,108520.0,0.003]
[1756767524153,0.06974,108510.0,108500.0,0.11310023]
[1756767524462,1.53779992,108510.0,108500.0,0.08245]
[1756767524667,1.53779992,108510.0,108500.0,0.14803023]
[1756767525358,1.49779992,108510.0,108500.0,0.14903023]
[1756767526356,0.92578,108510.0,108500.0,0.14903023]
[1756767526558,0.92578,108510.0,108500.0,0.41296023]
[1756767526559,1.16779992,108510.0,108500.0,0.41296023]
[1756767527259,1.16779992,108510.0,108500.0,0.34738]
[1756767529360,0.31175992,108510.0,108500.0,0.41296023]
[1756767529552,1.16763992,108510.0,108500.0,0.41296023]
[1756767530963,0.31175992,108510.0,108500.0,0.41296023]
[1756767531156,1.16759992,108510.0,108500.0,0.41296023]
[1756767532851,0.92558,108510.0,108500.0,0.41296023]
[1756767533253,1.16759992,108510.0,108500.0,0.41296023]
[1756767533457,0.47401747,108520.0,108500.0,0.77376023]
[1756767533660,1.63025739,108520.0,108510.0,0.08245]
[1756767533856,1.72903747,108520.0,108510.0,0.08245]
[1756767534056,1.97105739,108520.0,108510.0,0.08245]
[1756767534463,1.93105739,108520.0,108510.0,0.08245]
[1756767535161,2.00205739,108520.0,108510.0,0.08245]
[1756767535553,0.02048,108510.0,108500.0,0.14803023]
[1756767535754,0.31175992,108510.0,108500.0,0.14803023]
[1756767537464,0.31175992,108510.0,108500.0,0.16196023]
[1756767541670,0.31175992,108510.0,108500.0,0.14803023]
[1756767541972,0.31175992,108510.0,108500.0,0.08245]
[1756767542361,0.67255992,108510.0,108500.0,0.04752]
[1756767542563,0.31175992,108510.0,108500.0,0.08245]
[1756767542758,0.06974,108510.0,108500.0,0.45718]
[1756767543163,0.06974,108510.0,108500.0,0.52276023]
[1756767544274,0.31175992,108510.0,108500.0,0.16196023]
[1756767545875,1.54473553,108520.0,108510.0,0.03567]
[1756767546074,0.68953553,108520.0,108510.0,0.08217]
[1756767546574,0.32873553,108520.0,108510.0,0.08217]
[1756767547977,0.08771561,108520.0,108510.0,0.08217]
[1756767548179,0.32973553,108520.0,108510.0,0.08217]
[1756767548372,0.08771561,108520.0,108510.0,0.08217]
[1756767550080,0.08771561,108520.0,108510.0,0.44297]
[1756767550379,0.08771561,108520.0,108510.0,0.50855023]
[1756767552878,0.01960561,108520.0,108510.0,0.68498992]
[1756767553079,0.01960561,108520.0,108510.0,1.01714717]
[1756767555383,0.01960561,108520.0,108510.0,1.87190717]
[1756767555586,0.01960561,108520.0,108510.0,1.78974992]
[1756767555784,0.01960561,108520.0,108510.0,0.93498992]
[1756767556083,0.01960561,108520.0,108510.0,1.78974992]
[1756767556274,0.01960561,108520.0,108510.0,1.79877012]
[1756767556471,0.01960561,108520.0,108510.0,1.88074738]
[1756767556884,0.01960561,108520.0,108510.0,1.02598738]
[1756767557081,0.01960561,108520.0,108510.0,0.77598738]
[1756767557285,0.01960561,108520.0,108510.0,1.63062738]
[1756767562187,0.01960561,108520.0,108510.0,1.54865012]
[1756767562991,0.01960561,108520.0,108510.0,1.79865012]
[1756767564591,0.01960561,108520.0,108510.0,1.79833012]
[1756767566792,0.01960561,108520.0,108510.0,0.94401012]
[1756767566992,0.01960561,108520.0,108510.0,1.79825012]
[1756767569892,0.01960561,108520.0,108510.0,1.79805012]
[1756767570294,0.01960561,108520.0,108510.0,0.7019902]
[1756767570494,0.01960561,108520.0,108510.0,1.79801012]
[1756767572196,0.01960561,108520.0,108510.0,1.87998738]
[1756767575698,0.01960561,108520.0,108510.0,1.02598738]
[1756767575891,0.01960561,108520.0,108510.0,1.87970738]
[1756767579292,0.01960561,108520.0,108510.0,1.87954738]
[1756767579497,0.01960561,108520.0,108510.0,1.79757012]
[1756767582701,0.01960561,108520.0,108510.0,1.91209923]
[1756767585408,0.01960561,108520.0,108510.0,1.91181923]
[1756767586107,0.04008561,108520.0,108510.0,1.91177923]
[1756767586295,0.04008561,108520.0,108510.0,1.04951903]
[1756767586501,0.57946553,108520.0,108510.0,0.55749911]
[1756767586803,0.57946553,108520.0,108510.0,0.08217]
[1756767586804,0.90883679,108520.0,108510.0,0.08217]
[1756767587105,0.90883679,108520.0,108510.0,0.93537]
[1756767587305,0.90883679,108520.0,108510.0,0.16427354]
[1756767587494,0.90883679,108520.0,108510.0,1.01747354]
[1756767587901,0.58883679,108520.0,108510.0,1.01747354]
[1756767588099,0.92883679,108520.0,108510.0,1.01747354]
[1756767588298,0.92883679,108520.0,108510.0,0.93537]
[1756767588695,1.28963679,108520.0,108510.0,0.0465]
[1756767588899,1.28963679,108520.0,108500.0,0.49070354]
[1756767588900,0.02048,108510.0,108500.0,1.01738354]
[1756767589205,0.30985992,108510.0,108500.0,0.16426354]
[1756767589402,0.30985992,108510.0,108500.0,0.93528]
[1756767589608,0.55985992,108510.0,108500.0,0.08216]
[1756767589810,0.89985992,108510.0,108500.0,0.08216]
[1756767590004,0.89985992,108510.0,108500.0,0.04829]
[1756767590405,0.89985992,108510.0,108500.0,0.14779477]
[1756767590800,0.55985992,108510.0,108500.0,0.14779477]
[1756767591310,0.92065992,108510.0,108500.0,0.14779477]
[1756767591707,0.55985992,108510.0,108500.0,0.14779477]
[1756767596726,1.29065992,108510.0,108500.0,0.14779477]
[1756767597928,0.92065992,108510.0,108500.0,0.14779477]
[1756767599314,0.92065992,108510.0,108500.0,0.11392477]
[1756767599315,0.42864,108510.0,108500.0,0.11392477]
[1756767599518,0.98065992,108510.0,108500.0,0.11392477]
[1756767600124,0.92065992,108510.0,108500.0,0.11392477]
[1756767600314,0.06784,108500.0,108490.0,0.14779477]
[1756767600516,0.67065992,108500.0,108490.0,0.04829]
[1756767600720,0.67065992,108500.0,108490.0,0.11386368]
[1756767600924,0.67065992,108500.0,108490.0,0.14773368]
[1756767601833,0.67065992,108500.0,108490.0,0.14873368]
[1756767602628,0.42864,108510.0,108500.0,0.01494]
[1756767602827,0.42864,108510.0,108500.0,0.33911992]
[1756767603126,0.02416,108510.0,108500.0,1.44179992]
[1756767603326,0.83405126,108520.0,108500.0,1.8343036]
[1756767603633,1.24141126,108520.0,108510.0,0.02356]
[1756767603833,0.06784,108510.0,108500.0,0.14773368]
[1756767604032,0.67065992,108510.0,108500.0,0.14773368]
[1756767605632,0.67065992,108510.0,108500.0,0.16133368]
[1756767605833,0.42864,108510.0,108500.0,0.16133368]
[1756767606430,0.06784,108510.0,108500.0,0.16133368]
[1756767606732,0.06784,108510.0,108500.0,0.4033536]
[1756767606933,0.06784,108510.0,108500.0,0.16133368]
[1756767607128,0.06784,108510.0,108500.0,0.4033536]
[1756767607330,0.06784,108510.0,108500.0,0.16133368]
[1756767608030,0.30985992,108510.0,108500.0,0.11386368]
[1756767608235,1.48267984,108510.0,108500.0,0.06557368]
[1756767608425,0.06687,108500.0,108490.0,0.11395368]
[1756767608621,0.30888992,108500.0,108490.0,0.11395368]
[1756767610127,1.88212992,108500.0,108490.0,0.11395368]
[1756767610333,1.86164992,108500.0,108480.0,0.09940368]
[1756767610531,0.30788992,108490.0,108480.0,0.14778368]
[1756767611435,0.06587,108490.0,108480.0,0.14778368]
[1756767611831,0.30788992,108490.0,108480.0,0.14778368]
[1756767612334,0.06587,108490.0,108480.0,0.22304148]
[1756767612637,0.06587,108490.0,108480.0,0.58584148]
[1756767612837,0.06587,108490.0,108480.0,0.4670614]
[1756767613034,0.06587,108490.0,108480.0,0.8278614]
[1756767613232,0.06587,108500.0,108490.0,0.08221]
[1756767613434,0.02271,108500.0,108490.0,1.53738992]
[1756767613634,0.42667,108510.0,108500.0,0.04743]
[1756767613834,0.42667,108510.0,108500.0,0.33782992]
[1756767614038,0.42667,108510.0,108500.0,0.40340298]
[1756767614238,0.38351,108510.0,108500.0,0.40340298]
[1756767614439,0.42667,108510.0,108500.0,0.40340298]
[1756767614747,0.42667,108510.0,108500.0,0.16138306]
[1756767615343,0.87007,108520.0,108510.0,0.03383]
[1756767615540,1.25007,108520.0,108510.0,0.14778306]
[1756767615741,0.44667,108520.0,108510.0,0.14778306]
[1756767616037,0.42667,108530.0,108520.0,0.08221]
[1756767616243,0.42667,108530.0,108520.0,0.32422992]
[1756767616443,0.42667,108530.0,108520.0,0.14778306]
[1756767617034,0.42667,108530.0,108520.0,0.38980298]
[1756767617437,0.42667,108530.0,108520.0,0.14778306]
[1756767617834,0.43267,108530.0,108520.0,0.14778306]
[1756767618236,0.43267,108530.0,108520.0,0.38980298]
[1756767618746,0.43267,108530.0,108520.0,0.14778306]
[1756767618747,0.07187,108530.0,108520.0,0.14778306]
[1756767622348,0.07187,108530.0,108520.0,0.08221]
[1756767625550,0.006,108530.0,108520.0,0.32422992]
[1756767625753,0.006,108530.0,108520.0,0.57422992]
[1756767626056,0.006,108530.0,108520.0,0.93502992]
[1756767626547,0.006,108530.0,108520.0,0.94424967]
[1756767627054,0.006,108530.0,108520.0,1.00982273]
[1756767629647,0.006,108530.0,108520.0,1.86158273]
[1756767631449,0.006,108530.0,108520.0,1.79600967]
[1756767632157,0.006,108530.0,108520.0,1.00982273]
[1756767632457,0.006,108530.0,108520.0,1.86138273]
[1756767633349,0.01900066,108540.0,108520.0,1.86138273]
[1756767633551,0.01900066,108540.0,108530.0,0.68502992]
[1756767635253,0.01900066,108540.0,108530.0,0.50858306]
[1756767635455,0.01900066,108540.0,108530.0,0.75060298]
[1756767636057,0.02000066,108540.0,108530.0,0.75060298]
[1756767636860,0.02100066,108540.0,108530.0,0.75060298]
[1756767639965,0.002,108540.0,108530.0,1.00060298]
[1756767640166,0.002,108540.0,108530.0,1.85184298]
[1756767641274,0.002,108540.0,108530.0,0.93502992]
[1756767641472,0.002,108540.0,108530.0,1.78626992]
[1756767641873,0.002,108540.0,108530.0,1.86837346]
[1756767642176,0.002,108540.0,108530.0,1.86829346]
[1756767643075,0.001,108540.0,108530.0,1.83446346]
[1756767643666,0.001,108540.0,108530.0,1.87006346]
[1756767647371,0.001,108540.0,108530.0,1.01890346]
[1756767647567,0.001,108540.0,108530.0,1.86986346]
[1756767650076,0.001,108540.0,108530.0,0.76890346]
[1756767650280,0.07043,108540.0,108530.0,1.61970346]
[1756767650573,0.32043,108540.0,108530.0,0.52688354]
[1756767650876,0.32043,108540.0,108530.0,1.01688354]
[1756767651081,0.32043,108540.0,108530.0,0.93478]
[1756767651279,0.32043,108540.0,108530.0,0.93474]
[1756767651670,0.32043,108540.0,108530.0,1.17675992]
[1756767652177,0.87244992,108540.0,108530.0,0.14946455]
[1756767652379,0.92324992,108540.0,108530.0,0.14946455]
[1756767652680,0.92324992,108540.0,108530.0,0.08398]
[1756767652875,0.68123,108540.0,108530.0,0.08398]
[1756767653083,0.92324992,108540.0,108530.0,0.11386455]
[1756767654878,0.94324992,108540.0,108530.0,0.11386455]
[1756767655086,1.23376992,108540.0,108520.0,0.95180455]
[1756767655282,0.06943,108530.0,108520.0,0.99794455]
[1756767655883,0.31943,108530.0,108520.0,0.99794455]
[1756767656286,0.07043,108540.0,108530.0,0.0356]
[1756767656474,0.001,108540.0,108530.0,0.68455992]
[1756767656875,0.001,108540.0,108530.0,0.75004447]
[1756767657184,0.08799578,108550.0,108540.0,0.08174]
[1756767657387,0.43799578,108550.0,108540.0,0.32375992]
[1756767659486,0.43999578,108550.0,108540.0,0.32375992]
[1756767659783,0.43999578,108550.0,108540.0,0.44254]
[1756767659986,0.43999578,108550.0,108540.0,0.68455992]
[1756767660183,0.08999578,108550.0,108540.0,0.68455992]
[1756767660483,0.02056578,108550.0,108540.0,0.99206439]
[1756767660693,0.02056578,108550.0,108540.0,1.00135032]
[1756767660882,0.02056578,108550.0,108540.0,0.7593304]
[1756767661072,0.02056578,108550.0,108540.0,0.69384585]
[1756767661279,0.02056578,108550.0,108540.0,0.94384585]
[1756767661482,0.02056578,108550.0,108540.0,1.52586577]
[1756767661682,0.02056578,108550.0,108540.0,1.18586577]
[1756767661991,0.02056578,108550.0,108540.0,1.50586577]
[1756767662172,0.02056578,108550.0,108540.0,1.18586577]
[1756767662484,0.02056578,108550.0,108540.0,1.79436585]
[1756767663089,0.02056578,108550.0,108540.0,1.87646939]
[1756767664390,0.02056578,108550.0,108540.0,1.86980312]
[1756767664696,0.02056578,108550.0,108540.0,2.13178304]
[1756767665879,0.02056578,108550.0,108540.0,1.28130304]
[1756767666080,0.02056578,108550.0,108540.0,2.13174304]
[1756767666679,0.02056578,108550.0,108540.0,2.52386744]
[1756767666992,0.02056578,108550.0,108540.0,2.13174304]
[1756767667793,0.02056578,108550.0,108540.0,2.53386774]
[1756767669194,0.02056578,108550.0,108540.0,2.61597128]
[1756767670595,0.002,108550.0,108540.0,2.61597128]
[1756767671386,0.03227437,108570.0,108560.0,0.08407]
[1756767671593,0.03227437,108570.0,108560.0,1.53716992]
[1756767672196,0.03227437,108570.0,108560.0,1.60265982]
[1756767672589,0.03727437,108570.0,108560.0,1.60265982]
[1756767673090,0.03727437,108570.0,108560.0,1.62265982]
[1756767674091,0.03727437,108570.0,108560.0,2.28476762]
[1756767674290,0.01884009,108570.0,108560.0,1.97181764]
[1756767674491,0.01884009,108570.0,108560.0,2.93654675]
[1756767674793,0.06984,108600.0,108590.0,0.08407]
[1756767675000,0.06984,108600.0,108590.0,0.96543]
[1756767675188,0.06984,108600.0,108590.0,1.3154049]
[1756767675384,0.06984,108600.0,108590.0,0.9546049]
[1756767675897,0.92265992,108600.0,108590.0,0.9546049]
[1756767676390,0.92265992,108600.0,108590.0,0.1044449]
[1756767676895,0.06884,108590.0,108580.0,0.04782]
[1756767677095,1.04165992,108590.0,108580.0,0.04782]
[1756767677290,0.06884,108590.0,108580.0,0.08407]
[1756767677494,0.06884,108590.0,108580.0,0.68688992]
[1756767677692,0.04936,108590.0,108580.0,0.68688992]
[1756767677995,0.45298147,108600.0,108590.0,0.08407]
[1756767678399,0.46498147,108600.0,108590.0,0.08507]
[1756767678700,0.46098147,108600.0,108590.0,0.08507]
[1756767679094,0.44898147,108600.0,108590.0,0.04782]
[1756767679501,0.69100139,108600.0,108590.0,0.04782]
[1756767679697,0.67252139,108600.0,108580.0,1.12930992]
[1756767679901,0.06884,108590.0,108580.0,0.93411]
[1756767681596,0.06884,108590.0,108580.0,0.93511]
[1756767681801,0.06884,108590.0,108580.0,0.08507]
[1756767682016,0.63516139,108600.0,108580.0,0.32708992]
[1756767682207,0.011,108590.0,108580.0,1.50159992]
[1756767682501,0.013,108590.0,108580.0,1.50159992]
[1756767682703,0.013,108590.0,108580.0,1.53784992]
[1756767682896,0.013,108590.0,108580.0,1.88784992]
[1756767683096,0.013,108590.0,108580.0,1.53784992]
[1756767684800,0.013,108590.0,108580.0,1.53684992]
[1756767684997,0.002,108590.0,108580.0,1.53784992]
[1756767685799,0.013,108590.0,108580.0,1.53784992]
[1756767687703,0.013,108590.0,108580.0,0.68788992]
[1756767687904,0.013,108590.0,108580.0,1.53772992]
[1756767689109,0.013,108590.0,108580.0,1.86772992]
[1756767690800,0.013,108590.0,108580.0,1.53772992]
[1756767691001,0.03785,108590.0,108580.0,1.29567]
[1756767691201,0.03785,108590.0,108580.0,1.53768992]
[1756767691902,0.013,108590.0,108580.0,1.53768992]
[1756767695210,0.013,108590.0,108580.0,1.60309884]
[1756767695806,0.013,108590.0,108580.0,1.61241262]
[1756767696801,0.013,108590.0,108580.0,1.96241262]
[1756767698010,0.013,108590.0,108580.0,1.61241262]
[1756767698212,0.013,108590.0,108580.0,1.60297884]
[1756767698605,0.013,108590.0,108580.0,1.61220314]
[1756767698915,0.013,108590.0,108580.0,1.60297884]
[1756767700612,0.013,108590.0,108580.0,1.53756992]
[1756767700816,0.05897,108590.0,108580.0,1.60312001]
[1756767701216,0.013,108590.0,108580.0,1.53756992]
[1756767702113,0.07845,108590.0,108580.0,1.53756992]
[1756767702311,0.07845,108590.0,108580.0,1.61933107]
[1756767703114,0.07845,108590.0,108580.0,1.53752992]
[1756767703315,0.07845,108590.0,108580.0,1.61929107]
[1756767704119,0.07845,108590.0,108580.0,1.53752992]
[1756767704418,0.07845,108590.0,108580.0,1.61929107]
[1756767704715,0.89046992,108590.0,108580.0,0.59328713]
[1756767704911,0.89046992,108590.0,108580.0,0.42746436]
[1756767705111,1.25126992,108590.0,108580.0,0.001]
[1756767705709,1.29126992,108590.0,108580.0,0.08292]
[1756767706027,1.29126992,108590.0,108580.0,0.001]
[1756767707120,1.29126992,108590.0,108580.0,0.04915]
[1756767707918,1.29126992,108590.0,108580.0,0.001]
[1756767708412,1.29126992,108590.0,108580.0,0.02488]
[1756767709222,1.29126992,108590.0,108580.0,0.04915]
[1756767709718,1.29126992,108590.0,108580.0,0.001]
[1756767710815,1.04925,108590.0,108580.0,0.08292]
[1756767711018,1.29126992,108590.0,108580.0,0.08292]
[1756767711220,1.29126992,108590.0,108580.0,0.68573992]
[1756767711221,0.07845,108590.0,108580.0,0.68573992]
[1756767711410,0.013,108590.0,108580.0,0.68573992]
[1756767711609,0.013,108590.0,108580.0,1.35902436]
[1756767711816,0.013,108590.0,108580.0,1.85104428]
[1756767713120,0.013,108590.0,108580.0,1.78537992]
[1756767713310,0.013,108590.0,108580.0,1.86714107]
[1756767714011,0.013,108590.0,108580.0,2.19714107]
[1756767714513,0.013,108590.0,108580.0,2.11537992]
[1756767714715,0.013,108590.0,108580.0,2.19714107]
[1756767715115,0.013,108590.0,108580.0,1.88714107]
[1756767716522,0.013,108590.0,108580.0,2.21714107]
[1756767717120,0.013,108590.0,108580.0,2.30923087]
[1756767717322,0.013,108590.0,108580.0,1.01750107]
[1756767717630,0.013,108590.0,108580.0,2.17706107]
[1756767717922,0.013,108590.0,108580.0,2.18624447]
[1756767719024,0.013,108590.0,108580.0,1.33668447]
[1756767719223,0.013,108590.0,108580.0,1.89444332]
[1756767720328,0.013,108590.0,108580.0,2.56035683]
[1756767720516,0.013,108590.0,108580.0,1.58334602]
[1756767720819,0.013,108590.0,108580.0,2.35246223]
[1756767721421,0.011,108590.0,108580.0,2.35246223]
[1756767722518,0.01,108590.0,108580.0,2.31869223]
[1756767722833,0.04130485,108630.0,108620.0,0.04815]
[1756767723124,0.05048719,108630.0,108620.0,1.60209588]
[1756767723318,0.04130485,108630.0,108620.0,1.53669992]
[1756767723520,0.07737485,108630.0,108620.0,1.53669992]
[1756767723719,0.01836485,108630.0,108620.0,1.60209588]
[1756767723931,0.01836485,108630.0,108620.0,1.95209588]
[1756767724228,0.03336485,108630.0,108620.0,0.75113588]
[1756767724420,0.03336485,108630.0,108620.0,1.60281588]
[1756767724622,0.03636485,108630.0,108620.0,1.60281588]
[1756767725224,0.018,108630.0,108620.0,1.60281588]
[1756767726030,0.003,108630.0,108620.0,1.60181588]
[1756767726327,0.01,108630.0,108620.0,1.60181588]
[1756767726524,0.03433,108630.0,108620.0,0.75013588]
[1756767726729,0.05788,108630.0,108620.0,1.60165588]
[1756767728121,0.05788,108630.0,108620.0,1.67647807]
[1756767728320,0.05788,108630.0,108620.0,1.61108211]
[1756767728525,0.05788,108630.0,108620.0,1.36906219]
[1756767728728,0.05788,108630.0,108620.0,1.61108211]
[1756767729132,0.03433,108630.0,108620.0,1.61108211]
[1756767729334,0.01,108630.0,108620.0,1.61108211]
[1756767731532,0.01,108630.0,108620.0,0.75956211]
[1756767731834,0.01,108630.0,108620.0,1.61040211]
[1756767732126,0.01,108630.0,108620.0,0.75956211]
[1756767732330,0.01,108630.0,108620.0,1.61028211]
[1756767733031,0.01,108630.0,108620.0,0.75956211]
[1756767733235,0.58402992,108630.0,108620.0,0.44272]
[1756767733526,0.96402992,108630.0,108620.0,1.29332]
[1756767734034,0.94402992,108630.0,108620.0,0.44272]
[1756767734235,0.34201,108630.0,108620.0,1.29396]
[1756767734438,0.58402992,108630.0,108620.0,0.44272]
[1756767734624,0.58302992,108630.0,108620.0,0.93316]
[1756767734830,0.34101,108630.0,108620.0,1.29396]
[1756767735024,0.34101,108630.0,108620.0,1.53597992]
[1756767735935,0.34101,108630.0,108620.0,1.29396]
[1756767736130,0.30688,108630.0,108620.0,1.53597992]
[1756767737039,0.34101,108630.0,108620.0,1.53785992]
[1756767738333,0.34101,108630.0,108620.0,1.29564]
[1756767740038,0.009,108630.0,108620.0,1.53765992]
[1756767741129,0.009,108630.0,108620.0,1.29564]
[1756767741330,0.009,108630.0,108620.0,1.53765992]
[1756767741531,0.04313,108630.0,108620.0,0.68473992]
[1756767741738,0.09101,108630.0,108620.0,1.53685992]
[1756767742334,0.009,108630.0,108620.0,2.23891532]
[1756767742727,0.009,108630.0,108620.0,2.5463312]
[1756767743338,0.009,108630.0,108620.0,2.48093524]
[1756767743537,0.009,108630.0,108620.0,2.56268019]
[1756767744138,0.06311614,108660.0,108650.0,0.09788]
[1756767744139,0.01019841,108660.0,108650.0,0.09788]
[1756767744340,0.01019841,108660.0,108650.0,2.27073125]
[1756767744640,0.01019841,108660.0,108650.0,2.19505509]
[1756767745235,0.01019841,108660.0,108650.0,2.53708509]
[1756767745435,0.01719841,108660.0,108650.0,2.45646984]
[1756767745738,0.01719841,108660.0,108650.0,2.53808509]
[1756767746440,0.01587735,108680.0,108670.0,0.08305]
[1756767746636,0.01587735,108680.0,108670.0,1.98635358]
[1756767746840,0.01587735,108680.0,108670.0,2.65836668]
[1756767747138,0.01587735,108680.0,108670.0,2.65867746]
[1756767747532,0.01587735,108680.0,108670.0,2.68557525]
[1756767748139,0.01587735,108680.0,108670.0,2.55328215]
[1756767748335,0.01587735,108680.0,108670.0,2.88731537]
[1756767748638,0.01587735,108680.0,108670.0,3.06952328]
[1756767749739,0.01767726,108720.0,108710.0,0.03435]
[1756767749942,0.01767726,108720.0,108710.0,1.95960037]
[1756767750445,0.01767726,108720.0,108710.0,2.33960037]
[1756767750742,0.01767726,108720.0,108710.0,2.75341955]
[1756767751046,0.01967726,108720.0,108710.0,1.45489901]
[1756767751345,0.01967726,108720.0,108710.0,2.60920938]
[1756767752046,0.01862264,108750.0,108740.0,0.08305]
[1756767752254,0.02864141,108760.0,108750.0,0.09527]
[1756767752451,0.00979265,108760.0,108750.0,1.36766037]
[1756767752636,0.00979265,108760.0,108750.0,0.47657701]
[1756767752838,0.64339302,108760.0,108750.0,0.02469]
[1756767753038,0.34180265,108760.0,108750.0,0.02469]
[1756767753237,0.34180265,108760.0,108750.0,0.38549]
[1756767753444,0.34180265,108760.0,108750.0,0.08305]
[1756767753644,0.34180265,108760.0,108750.0,0.44385]
[1756767754443,0.03413,108750.0,108740.0,0.43759919]
[1756767754652,0.39711037,108750.0,108740.0,0.07679919]
[1756767755244,0.09552,108750.0,108740.0,0.48487919]
[1756767755547,1.31791037,108750.0,108740.0,0.00459]
[1756767755938,0.04557,108720.0,108710.0,0.46199901]
[1756767756246,0.08237,108720.0,108710.0,0.46199901]
[1756767756438,0.33237,108720.0,108710.0,0.06667901]
[1756767756744,0.99476037,108720.0,108710.0,0.02024901]
[1756767757137,0.99476037,108720.0,108690.0,1.26941078]
[1756767757138,1.35414158,108720.0,108690.0,1.26941078]
[1756767757346,0.08237,108690.0,108680.0,0.51479384]
[1756767757544,0.0368,108680.0,108670.0,0.41600835]
[1756767757749,0.07937,108680.0,108670.0,0.42791835]
[1756767758049,0.44017,108680.0,108670.0,0.06711835]
[1756767758247,0.69017,108680.0,108670.0,0.06711835]
[1756767758438,0.68517,108680.0,108670.0,0.02068835]
[1756767758839,0.65637,108680.0,108660.0,0.39532]
[1756767759038,0.40637,108680.0,108660.0,0.39532]